fUST/lending_fUST_20241130
["ID","MTS","AMOUNT","RATE_DAILY","PERIOD"]
[343879548,1732980647660,-500.0,0.00024657,3]
[343879549,1732980647670,-596.92,0.00024657,3]
[343879550,1732980647680,-500.0,0.00024657,3]
[343879551,1732980647691,-500.0,0.00024657,3]
[343879552,1732980647704,-500.0,0.00024657,3]
[343879553,1732980647715,-500.0,0.00024657,3]
[343879554,1732980647725,-500.0,0.00024657,3]
[343879555,1732980647735,-500.0,0.00024657,3]
[343879556,1732980647745,-500.0,0.00024657,3]
[343879557,1732980647755,-500.0,0.00024657,3]
[343879558,1732980647767,-500.0,0.00024657,3]
[343879559,1732980647776,-500.0,0.00024657,3]
[343879560,1732980647786,-500.0,0.00024657,3]
[343879561,1732980647796,-500.0,0.00024657,3]
[343879562,1732980647807,-500.0,0.00024657,3]
[343879563,1732980647818,-500.0,0.00024657,3]
[343879564,1732980647828,-500.0,0.00024657,3]
[343879565,1732980647840,-500.0,0.00024657,3]
[343879566,1732980647852,-500.0,0.00024657,3]
[343879567,1732980647862,-411.72661507,0.00024657,3]
[343879568,1732980647872,-693.17,0.00024657,3]
[343879569,1732980647882,-500.0,0.00024657,3]
[343879570,1732980647891,-500.0,0.00024657,3]
[343879571,1732980647901,-500.0,0.00024657,3]
[343879572,1732980647911,-500.0,0.00024657,3]
[343879573,1732980647921,-500.0,0.00024657,3]
[343879574,1732980647931,-500.0,0.00024657,3]
[343879575,1732980647941,-500.0,0.00024657,3]
[343879576,1732980647951,-500.0,0.00024657,3]
[343879577,1732980647962,-500.0,0.00024657,3]
[343879578,1732980647972,-278.30236172,0.00024657,3]
[343879579,1732980647981,-500.0,0.00024657,3]
[343879580,1732980647991,-694.87,0.00024657,3]
[343879581,1732980648001,-500.0,0.00024657,3]
[343879582,1732980648011,-583.26,0.00024657,3]
[343879583,1732980648021,-500.0,0.00024657,3]
[343879584,1732980648031,-218.95333721,0.00024657,3]
[343879585,1732980648041,-600.17,0.00024657,3]
[343879586,1732980648050,-500.0,0.00024657,3]
[343879587,1732980648060,-500.0,0.00024657,3]
[343879588,1732980648070,-551.55069465,0.00024657,3]
[343879589,1732980648079,-500.0,0.00024657,3]
[343879590,1732980648089,-500.0,0.00024657,3]
[343879591,1732980648098,-500.0,0.00024657,3]
[343879592,1732980648108,-500.0,0.00024657,3]
[343879593,1732980648118,-500.0,0.00024657,3]
[343879594,1732980648128,-500.0,0.00024657,3]
[343879595,1732980648138,-1647.87,0.00024657,3]
[343879596,1732980648148,-500.0,0.00024657,3]
[343879597,1732980648158,-531.67963331,0.00024657,3]
[343879598,1732980648168,-500.0,0.00024657,3]
[343879599,1732980648178,-794.9,0.00024657,3]
[343879600,1732980648188,-3701.3,0.00024657,3]
[343879601,1732980648198,-500.0,0.00024657,3]
[343879602,1732980648209,-500.0,0.00024657,3]
[343879603,1732980648219,-535.2450139,0.00024657,3]
[343879604,1732980648228,-500.0,0.00024657,3]
[343879605,1732980648238,-453.95768917,0.00024657,3]
[343879606,1732980648248,-500.0,0.00024657,3]
[343879607,1732980648258,-500.0,0.00024657,3]
[343879608,1732980648268,-205.09530956,0.00024657,3]
[343879609,1732980648278,-500.0,0.00024657,3]
[343879610,1732980648288,-500.0,0.00024657,3]
[343879611,1732980648298,-500.0,0.00024657,3]
[343879612,1732980648308,-508.37931533,0.00024657,3]
[343879613,1732980648318,-999.21,0.00024657,3]
[343879614,1732980648327,-533.02,0.00024657,3]
[343879615,1732980648338,-500.0,0.00024657,3]
[343879616,1732980648348,-500.0,0.00024657,3]
[343879617,1732980648358,-500.0,0.00024657,3]
[343879618,1732980648369,-500.0,0.00024657,3]
[343879619,1732980648380,-500.0,0.00024657,3]
[343879620,1732980648392,-500.0,0.00024657,3]
[343879621,1732980648402,-500.0,0.00024657,3]
[343879622,1732980648412,-500.0,0.00024657,3]
[343879623,1732980648422,-501.26571218,0.00024657,3]
[343879624,1732980648432,-500.0,0.00024657,3]
[343879625,1732980648442,-500.0,0.00024657,3]
[343879626,1732980648455,-500.0,0.00024657,3]
[343879627,1732980648474,-546.15,0.00024657,3]
[343879628,1732980648490,-500.0,0.00024657,3]
[343879629,1732980648500,-500.0,0.00024657,3]
[343879630,1732980648510,-500.0,0.00024657,3]
[343879631,1732980648520,-500.0,0.00024657,3]
[343879632,1732980648530,-500.0,0.00024657,3]
[343879633,1732980648539,-500.0,0.00024657,3]
[343879634,1732980648550,-500.0,0.00024657,3]
[343879635,1732980648560,-500.0,0.00024657,3]
[343879636,1732980648569,-500.0,0.00024657,3]
[343879637,1732980648580,-502.11524686,0.00024657,2]
[343879638,1732980648591,-500.0,0.00024657,3]
[343879639,1732980648602,-500.0,0.00024657,3]
[343879640,1732980648612,-173.4548098,0.00024657,3]
[343879641,1732980648621,-663.49,0.00024657,3]
[343879642,1732980648632,-500.0,0.00024657,3]
[343879643,1732980648642,-500.0,0.00024657,3]
[343879644,1732980648652,-500.0,0.00024657,3]
[343879645,1732980648661,-502.98649358,0.00024657,3]
[343879646,1732980648671,-866.08,0.00024657,3]
[343879647,1732980648680,-500.0,0.00024657,3]
[343879648,1732980648690,-532.7742584,0.00024657,3]
[343879649,1732980648700,-518.73744606,0.00024657,3]
[343879650,1732980648710,-500.0,0.00024657,3]
[343879651,1732980648720,-527.43835425,0.00024657,3]
[343879652,1732980648730,-1287.33,0.00024657,3]
[343879653,1732980648740,-500.0,0.00024657,3]
[343879654,1732980648750,-500.0,0.00024657,3]
[343879655,1732980648760,-500.0,0.00024657,3]
[343879656,1732980648770,-500.0,0.00024657,3]
[343879657,1732980648779,-500.0,0.00024657,3]
[343879658,1732980648789,-500.0,0.00024657,3]
[343879659,1732980648798,-500.0,0.00024657,3]
[343879660,1732980648808,-500.0,0.00024657,3]
[343879661,1732980648818,-789.35,0.00024657,3]
[343879662,1732980648828,-500.0,0.00024657,3]
[343879663,1732980648837,-500.0,0.00024657,3]
[343879664,1732980648851,-501.29653527,0.00024657,3]
[343879665,1732980648861,-500.0,0.00024657,3]
[343879666,1732980648870,-500.0,0.00024657,3]
[343879667,1732980648880,-500.0,0.00024657,3]
[343879668,1732980648890,-406.90253464,0.00024657,3]
[343879669,1732980648899,-559.25048779,0.00024657,3]
[343879670,1732980648912,-9755.77,0.00024657,3]
[343879671,1732980648923,-1006.32,0.00024657,3]
[343879672,1732980648933,-505.04132601,0.00024657,3]
[343879673,1732980648946,-500.0,0.00024657,3]
[343879674,1732980648958,-500.0,0.00024657,3]
[343879675,1732980648968,-546.63,0.00024657,3]
[343879676,1732980648978,-4170.98,0.00024657,3]
[343879677,1732980648987,-948.14,0.00024657,3]
[343879678,1732980648997,-509.53044566,0.00024657,3]
[343879679,1732980649006,-518.93846474,0.00024657,3]
[343879680,1732980649016,-500.0,0.00024657,3]
[343879681,1732980649025,-500.0,0.00024657,3]
[343879682,1732980649035,-500.0,0.00024657,3]
[343879683,1732980649045,-500.0,0.00024657,3]
[343879684,1732980649055,-500.0,0.00024657,3]
[343879685,1732980649064,-500.0,0.00024657,3]
[343879686,1732980649074,-467.82329849,0.00024657,3]
[343879687,1732980649084,-1909.55,0.00024657,3]
[343879688,1732980649094,-500.0,0.00024657,3]
[343879689,1732980649103,-500.0,0.00024657,3]
[343879690,1732980649113,-500.0,0.00024657,3]
[343879691,1732980649123,-500.0,0.00024657,3]
[343879692,1732980649132,-500.0,0.00024657,3]
[343879693,1732980649242,-508.2314356,0.00024657,3]
[343879694,1732980649252,-514.83594216,0.00024657,3]
[343879695,1732980649261,-507.9929238,0.00024657,3]
[343879696,1732980649271,-506.27487853,0.00024657,3]
[343879697,1732980649280,-500.0,0.00024657,3]
[343879698,1732980649290,-500.0,0.00024657,3]
[343879699,1732980649299,-196.52059612,0.00024657,3]
[343879700,1732980649308,-500.0,0.00024657,3]
[343879701,1732980649318,-500.0,0.00024657,3]
[343879702,1732980649328,-400.27738057,0.00024657,3]
[343879703,1732980649337,-500.0,0.00024657,3]
[343879704,1732980649346,-2441.67,0.00024657,3]
[343879705,1732980649357,-507.38153347,0.00024657,3]
[343879706,1732980649367,-501.13360775,0.00024657,3]
[343879707,1732980649376,-500.0,0.00024657,3]
[343879708,1732980649386,-503.33308798,0.00024657,3]
[343879709,1732980649395,-500.0,0.00024657,3]
[343879710,1732980649405,-500.0,0.00024657,3]
[343879711,1732980649414,-3380.45,0.00024657,3]
[343879712,1732980649424,-500.0,0.00024657,3]
[343879713,1732980649434,-500.0,0.00024657,3]
[343879714,1732980649444,-503.16198276,0.00024657,3]
[343879715,1732980649455,-500.0,0.00024657,3]
[343879716,1732980649465,-500.0,0.00024657,3]
[343879717,1732980649475,-500.0,0.00024657,3]
[343879718,1732980649485,-500.0,0.00024657,3]
[343879719,1732980649495,-833.74,0.00024657,3]
[343879720,1732980649505,-500.0,0.00024657,3]
[343879721,1732980649514,-189.61500369,0.00024657,3]
[343879722,1732980649524,-543.91751058,0.00024657,3]
[343879723,1732980649534,-500.0,0.00024657,3]
[343879724,1732980649543,-554.05683359,0.00024657,3]
[343879725,1732980649552,-500.0,0.00024657,3]
[343879726,1732980649563,-2054.59,0.00024657,3]
[343879727,1732980649572,-350.73219758,0.00024657,3]
[343879728,1732980649582,-565.42,0.00024657,3]
[343879729,1732980649592,-500.0,0.00024657,3]
[343879730,1732980649602,-917.08,0.00024657,3]
[343879731,1732980649612,-500.0,0.00024657,3]
[343879732,1732980649622,-500.0,0.00024657,3]
[343879733,1732980649632,-636.79,0.00024657,3]
[343879734,1732980649641,-500.0,0.00024657,3]
[343879735,1732980649651,-500.0,0.00024657,3]
[343879736,1732980649660,-2565.98,0.00024657,3]
[343879737,1732980649669,-212.03993649,0.00024657,3]
[343879738,1732980649678,-500.0,0.00024657,3]
[343879739,1732980649687,-500.0,0.00024657,3]
[343879740,1732980649696,-1920.41,0.00024657,3]
[343879741,1732980649707,-517.39258072,0.00024657,3]
[343879742,1732980649717,-500.0,0.00024657,3]
[343879743,1732980649727,-500.0,0.00024657,3]
[343879744,1732980649737,-500.0,0.00024657,3]
[343879745,1732980649746,-500.0,0.00024657,3]
[343879746,1732980649756,-600.94301478,0.00024657,3]
[343879747,1732980649765,-500.0,0.00024657,3]
[343879748,1732980649775,-500.0,0.00024657,3]
[343879749,1732980649784,-500.83489714,0.00024657,3]
[343879750,1732980649794,-500.0,0.00024657,3]
[343879751,1732980649804,-500.0,0.00024657,3]
[343879752,1732980649813,-500.0,0.00024657,3]
[343879753,1732980649823,-500.0,0.00024657,3]
[343879754,1732980649832,-500.0,0.00024657,3]
[343879755,1732980649842,-503.03606694,0.00024657,3]
[343879756,1732980649853,-500.0,0.00024657,3]
[343879757,1732980649864,-500.0,0.00024657,3]
[343879758,1732980649874,-500.0,0.00024657,3]
[343879759,1732980649884,-500.0,0.00024657,3]
[343879760,1732980649896,-500.0,0.00024657,3]
[343879761,1732980649905,-500.0,0.00024657,3]
[343879762,1732980649915,-830.08,0.00024657,3]
[343879763,1732980649924,-500.0,0.00024657,3]
[343879764,1732980649934,-500.0,0.00024657,3]
[343879765,1732980649944,-1548.22,0.00024657,2]
[343879766,1732980649955,-500.0,0.00024657,3]
[343879767,1732980649964,-500.0,0.00024657,3]
[343879768,1732980649973,-4924.58,0.00024657,3]
[343879769,1732980649983,-500.0,0.00024657,3]
[343879770,1732980649991,-500.0,0.00024657,3]
[343879771,1732980650001,-520.77192522,0.00024657,3]
[343879772,1732980650011,-500.0,0.00024657,3]
[343879773,1732980650022,-809.12,0.00024657,3]
[343879774,1732980650031,-500.0,0.00024657,3]
[343879775,1732980650041,-500.0,0.00024657,3]
[343879776,1732980650050,-500.0,0.00024657,3]
[343879777,1732980650059,-538.75,0.00024657,3]
[343879778,1732980650068,-500.0,0.00024657,3]
[343879779,1732980650078,-500.0,0.00024657,3]
[343879780,1732980650087,-500.0,0.00024657,3]
[343879781,1732980650096,-410.97293891,0.00024657,3]
[343879782,1732980650105,-506.13123871,0.00024657,3]
[343879783,1732980650115,-500.0,0.00024657,3]
[343879784,1732980650124,-549.93257842,0.00024657,3]
[343879785,1732980650135,-625.02,0.00024657,3]
[343879786,1732980650145,-500.0,0.00024657,3]
[343879787,1732980650154,-500.0,0.00024657,3]
[343879788,1732980650163,-500.0,0.00024657,3]
[343879789,1732980650173,-500.0,0.00024657,3]
[343879790,1732980650182,-500.0,0.00024657,3]
[343879791,1732980650191,-1971.98274185,0.00024812,2]
[343879792,1732980650201,-903.54415448,0.00024831,2]
[343879793,1732980650212,-500.0,0.0002493,3]
[343879794,1732980650222,-500.0,0.0002493,3]
[343879795,1732980650231,-500.0,0.0002493,3]
[343879796,1732980650240,-500.0,0.0002493,3]
[343879797,1732980650250,-500.0,0.00024931,3]
[343879798,1732980650260,-500.0,0.00024931,3]
[343879799,1732980650269,-500.0,0.00024931,3]
[343879800,1732980650279,-500.0,0.00024931,3]
[343879801,1732980650288,-500.0,0.00024931,3]
[343879802,1732980650297,-511.229654,0.00024931,3]
[343879803,1732980650307,-500.0,0.00024931,3]
[343879804,1732980650316,-500.0,0.00024931,3]
[343879805,1732980650326,-560.92020582,0.00024931,3]
[343879806,1732980650336,-526.1261884,0.00024931,3]
[343879807,1732980650346,-500.0,0.00024931,3]
[343879808,1732980650355,-500.0,0.00024931,3]
[343879809,1732980650364,-553.75493523,0.00024931,3]
[343879810,1732980650373,-500.0,0.00024931,3]
[343879811,1732980650383,-479.23762056,0.00024931,3]
[343879812,1732980650392,-204.02580885,0.00024931,3]
[343879813,1732980650402,-500.0,0.00024931,3]
[343879814,1732980650411,-500.0,0.00024931,3]
[343879815,1732980650421,-500.0,0.00024931,3]
[343879816,1732980650430,-500.0,0.00024931,3]
[343879817,1732980650439,-500.0,0.00024931,3]
[343879818,1732980650448,-501.03,0.00024931,3]
[343879819,1732980650460,-500.0,0.00024931,3]
[343879820,1732980650470,-500.0,0.00024931,3]
[343879821,1732980650480,-200.0,0.00024931,3]
[343879822,1732980650489,-500.0,0.00024931,3]
[343879823,1732980650499,-500.0,0.00024931,3]
[343879824,1732980650508,-500.0,0.00024931,3]
[343879825,1732980650517,-500.0,0.00024931,3]
[343879826,1732980650527,-511.1848626,0.00024931,3]
[343879827,1732980650536,-500.0,0.00024931,3]
[343879828,1732980650546,-509.55557685,0.00024931,3]
[343879829,1732980650556,-636.65,0.00024931,3]
[343879830,1732980650565,-500.0,0.00024931,3]
[343879831,1732980650574,-511.90055363,0.00024931,3]
[343879832,1732980650584,-516.79501647,0.00024931,3]
[343879833,1732980650594,-500.0,0.00024931,3]
[343879834,1732980650604,-634.90993357,0.00024931,3]
[343879835,1732980650613,-500.0,0.00024931,3]
[343879836,1732980650623,-500.0,0.00024931,3]
[343879837,1732980650632,-500.0,0.00024931,3]
[343879838,1732980650642,-500.0,0.00024931,3]
[343879839,1732980650652,-500.0,0.00024931,3]
[343879840,1732980650661,-500.0,0.00024931,3]
[343879841,1732980650673,-500.0,0.00024931,3]
[343879842,1732980650682,-755.32,0.00024931,3]
[343879843,1732980650691,-500.0,0.00024931,3]
[343879844,1732980650700,-589.38794169,0.00024931,3]
[343879845,1732980650711,-662.22,0.00024931,3]
[343879846,1732980650720,-500.0,0.00024931,3]
[343879847,1732980650730,-534.03,0.00024931,3]
[343879848,1732980650739,-500.0,0.00024931,3]
[343879849,1732980650750,-559.69,0.00024931,3]
[343879850,1732980650759,-500.0,0.00024931,3]
[343879851,1732980650769,-500.0,0.00024931,3]
[343879852,1732980650778,-500.0,0.00024931,3]
[343879853,1732980650787,-500.0,0.00024931,3]
[343879854,1732980650797,-568.07219347,0.00024931,3]
[343879855,1732980650806,-500.0,0.00024931,3]
[343879856,1732980650816,-500.0,0.00024931,3]
[343879857,1732980650825,-500.0,0.00024931,3]
[343879858,1732980650834,-500.0,0.00024931,3]
[343879859,1732980650846,-500.0,0.00024931,3]
[343879860,1732980650859,-500.0,0.00024931,3]
[343879861,1732980650869,-506.33744728,0.00024931,3]
[343879862,1732980650879,-500.0,0.00024931,3]
[343879863,1732980650888,-428.03996566,0.00024931,3]
[343879864,1732980650898,-500.0,0.00024931,3]
[343879865,1732980650907,-500.0,0.00024931,3]
[343879866,1732980650917,-500.0,0.00024931,3]
[343879867,1732980650929,-575.86,0.00024931,3]
[343879868,1732980650941,-1060.04,0.00024931,3]
[343879869,1732980650955,-500.0,0.00024931,3]
[343879870,1732980650965,-500.0,0.00024931,3]
[343879871,1732980650974,-500.0,0.00024931,3]
[343879872,1732980650984,-500.0,0.00024931,3]
[343879873,1732980650993,-500.0,0.00024931,3]
[343879874,1732980651003,-500.0,0.00024931,3]
[343879875,1732980651012,-500.0,0.00024931,2]
[343879876,1732980651021,-500.0,0.00024931,3]
[343879877,1732980651031,-500.0,0.00024931,3]
[343879878,1732980651040,-500.0,0.00024931,3]
[343879879,1732980651126,-420.57471654,0.00024931,3]
[343879880,1732980651137,-505.59838417,0.00024931,3]
[343879881,1732980651146,-500.0,0.00024931,3]
[343879882,1732980651156,-597.73693504,0.00024931,3]
[343879883,1732980651166,-500.0,0.00024931,3]
[343879884,1732980651175,-500.0,0.00024931,3]
[343879885,1732980651185,-656.65,0.00024931,3]
[343879886,1732980651194,-626.46,0.00024931,3]
[343879887,1732980651204,-1088.58,0.00024931,3]
[343879888,1732980651214,-500.0,0.00024931,3]
[343879889,1732980651223,-500.0,0.00024931,3]
[343879890,1732980651232,-493.19518207,0.00024931,3]
[343879891,1732980651242,-500.0,0.00024931,3]
[343879892,1732980651252,-500.0,0.00024931,3]
[343879893,1732980651261,-500.0,0.00024931,3]
[343879894,1732980651272,-500.0,0.00024931,3]
[343879895,1732980651281,-500.0,0.00024931,3]
[343879896,1732980651290,-498.58193212,0.00024931,3]
[343879897,1732980651300,-500.0,0.00024931,3]
[343879898,1732980651309,-500.0,0.00024931,3]
[343879899,1732980651319,-500.0,0.00024931,3]
[343879900,1732980651328,-500.0,0.00024931,3]
[343879901,1732980651337,-634.2,0.00024931,3]
[343879902,1732980651346,-500.0,0.00024931,3]
[343879903,1732980651355,-506.53687882,0.00024931,3]
[343879904,1732980651365,-500.0,0.00024931,3]
[343879905,1732980651374,-500.0,0.00024931,3]
[343879906,1732980651384,-500.0,0.00024931,3]
[343879907,1732980651393,-631.93857624,0.00024931,3]
[343879908,1732980651402,-596.92,0.00024931,3]
[343879909,1732980651412,-500.0,0.00024931,3]
[343879910,1732980651422,-500.0,0.00024931,3]
[343879911,1732980651431,-500.0,0.00024931,3]
[343879912,1732980651441,-500.0,0.00024931,3]
[343879913,1732980651451,-500.0,0.00024931,3]
[343879914,1732980651463,-540.83731096,0.00024931,3]
[343879915,1732980651472,-505.88021459,0.00024931,3]
[343879916,1732980651483,-500.0,0.00024931,3]
[343879917,1732980651493,-500.0,0.00024931,3]
[343879918,1732980651502,-500.0,0.00024931,3]
[343879919,1732980651512,-500.0,0.00024931,3]
[343879920,1732980651522,-500.0,0.00024931,3]
[343879921,1732980651531,-500.0,0.00024931,3]
[343879922,1732980651541,-500.0,0.00024931,3]
[343879923,1732980651550,-693.17,0.00024931,3]
[343879924,1732980651559,-500.0,0.00024931,3]
[343879925,1732980651570,-500.0,0.00024931,3]
[343879926,1732980651579,-500.0,0.00024931,3]
[343879927,1732980651588,-558.76192588,0.00024931,3]
[343879928,1732980651598,-500.0,0.00024931,3]
[343879929,1732980651607,-500.0,0.00024931,3]
[343879930,1732980651617,-500.0,0.00024931,3]
[343879931,1732980651626,-500.0,0.00024931,3]
[343879932,1732980651635,-694.87,0.00024931,3]
[343879933,1732980651644,-500.0,0.00024931,3]
[343879934,1732980651653,-583.26,0.00024931,3]
[343879935,1732980651662,-500.0,0.00024931,3]
[343879936,1732980651672,-600.17,0.00024931,3]
[343879937,1732980651681,-500.0,0.00024931,3]
[343879938,1732980651690,-500.0,0.00024931,3]
[343879939,1732980651699,-500.0,0.00024931,3]
[343879940,1732980651710,-500.0,0.00024931,3]
[343879941,1732980651719,-500.0,0.00024931,3]
[343879942,1732980651729,-500.0,0.00024931,3]
[343879943,1732980651739,-500.0,0.00024931,3]
[343879944,1732980651748,-500.0,0.00024931,3]
[343879945,1732980651758,-1647.87,0.00024931,3]
[343879946,1732980651767,-500.0,0.00024931,3]
[343879947,1732980651777,-500.0,0.00024931,3]
[343879948,1732980651786,-794.9,0.00024931,3]
[343879949,1732980651795,-3701.3,0.00024931,3]
[343879950,1732980651805,-500.0,0.00024931,3]
[343879951,1732980651815,-500.0,0.00024931,3]
[343879952,1732980651824,-500.0,0.00024931,3]
[343879953,1732980651833,-500.0,0.00024931,3]
[343879954,1732980651843,-500.0,0.00024931,3]
[343879955,1732980651852,-500.0,0.00024931,3]
[343879956,1732980651865,-500.0,0.00024931,3]
[343879957,1732980651874,-500.0,0.00024931,3]
[343879958,1732980651883,-999.21,0.00024931,3]
[343879959,1732980651893,-533.02,0.00024931,3]
[343879960,1732980651902,-500.0,0.00024931,3]
[343879961,1732980651912,-506.38283541,0.00024931,3]
[343879962,1732980651921,-500.0,0.00024931,3]
[343879963,1732980651930,-500.0,0.00024931,3]
[343879964,1732980651940,-500.0,0.00024931,3]
[343879965,1732980651949,-500.0,0.00024931,3]
[343879966,1732980651959,-500.0,0.00024931,3]
[343879967,1732980651968,-500.0,0.00024931,3]
[343879968,1732980651977,-500.0,0.00024931,3]
[343879969,1732980651986,-500.0,0.00024931,3]
[343879970,1732980651995,-546.15,0.00024931,3]
[343879971,1732980652005,-500.0,0.00024931,3]
[343879972,1732980652016,-269.85779196,0.00024931,3]
[343879973,1732980652026,-500.0,0.00024931,3]
[343879974,1732980652036,-500.0,0.00024931,3]
[343879975,1732980652046,-500.0,0.00024931,3]
[343879976,1732980652055,-500.0,0.00024931,3]
[343879977,1732980652064,-500.0,0.00024931,3]
[343879978,1732980652073,-500.0,0.00024931,3]
[343879979,1732980652083,-500.0,0.00024931,3]
[343879980,1732980652092,-502.74439547,0.00024931,3]
[343879981,1732980652101,-663.49,0.00024931,3]
[343879982,1732980652111,-500.0,0.00024931,3]
[343879983,1732980652120,-500.0,0.00024931,3]
[343879984,1732980652130,-866.08,0.00024931,3]
[343879985,1732980652139,-500.0,0.00024931,3]
[343879986,1732980652148,-500.0,0.00024931,3]
[343879987,1732980652157,-1287.33,0.00024931,3]
[343879988,1732980652166,-500.0,0.00024931,3]
[343879989,1732980652175,-500.0,0.00024931,3]
[343879990,1732980652185,-534.46734512,0.00024931,3]
[343879991,1732980652195,-500.0,0.00024931,3]
[343879992,1732980652204,-500.0,0.00024931,3]
[343879993,1732980652214,-506.37078235,0.00024931,3]
[343879994,1732980652223,-500.0,0.00024931,3]
[343879995,1732980652233,-789.35,0.00024931,3]
[343879996,1732980652242,-500.0,0.00024931,3]
[343879997,1732980652251,-500.0,0.00024931,3]
[343879998,1732980652261,-500.0,0.00024931,3]
[343879999,1732980652270,-508.38587082,0.00024931,3]
[343880000,1732980652279,-9755.77,0.00024931,3]
[343880001,1732980652289,-1006.32,0.00024931,3]
[343880002,1732980652298,-641.19511504,0.00024931,3]
[343880003,1732980652308,-598.28276402,0.00024931,3]
[343880004,1732980652318,-546.63,0.00024931,3]
[343880005,1732980652327,-4170.98,0.00024931,3]
[343880006,1732980652337,-948.14,0.00024931,3]
[343880007,1732980652346,-515.52008227,0.00024931,3]
[343880008,1732980652357,-500.0,0.00024931,3]
[343880009,1732980652366,-500.0,0.00024931,3]
[343880010,1732980652376,-500.0,0.00024931,3]
[343880011,1732980652385,-500.0,0.00024931,3]
[343880012,1732980652394,-1909.55,0.00024931,3]
[343880013,1732980652403,-500.0,0.00024931,3]
[343880014,1732980652413,-500.0,0.00024931,3]
[343880015,1732980652422,-500.0,0.00024931,3]
[343880016,1732980652432,-531.53258658,0.00024931,3]
[343880017,1732980652441,-500.0,0.00024931,3]
[343880018,1732980652450,-500.0,0.00024931,3]
[343880019,1732980652461,-500.0,0.00024931,3]
[343880020,1732980652469,-500.0,0.00024931,3]
[343880021,1732980652480,-500.0,0.00024931,3]
[343880022,1732980652489,-2441.67,0.00024931,3]
[343880023,1732980652499,-500.0,0.00024931,3]
[343880024,1732980652508,-500.0,0.00024931,3]
[343880025,1732980652517,-500.0,0.00024931,3]
[343880026,1732980652527,-3380.45,0.00024931,3]
[343880027,1732980652536,-500.0,0.00024931,3]
[343880028,1732980652546,-500.0,0.00024931,3]
[343880029,1732980652555,-607.03406879,0.00024931,3]
[343880030,1732980652565,-500.0,0.00024931,3]
[343880031,1732980652574,-500.0,0.00024931,3]
[343880032,1732980652584,-500.0,0.00024931,3]
[343880033,1732980652593,-833.74,0.00024931,3]
[343880034,1732980652602,-500.0,0.00024931,3]
[343880035,1732980652612,-500.0,0.00024931,3]
[343880036,1732980652621,-500.0,0.00024931,3]
[343880037,1732980652631,-2054.59,0.00024931,3]
[343880038,1732980652640,-565.42,0.00024931,3]
[343880039,1732980652650,-500.0,0.00024931,3]
[343880040,1732980652660,-917.08,0.00024931,3]
[343880041,1732980652669,-500.0,0.00024931,3]
[343880042,1732980652679,-500.0,0.00024931,3]
[343880043,1732980652688,-636.79,0.00024931,3]
[343880044,1732980652698,-500.0,0.00024931,3]
[343880045,1732980652711,-500.0,0.00024931,3]
[343880046,1732980652719,-2565.98,0.00024931,3]
[343880047,1732980652729,-535.7834601,0.00024931,3]